fUSD/lending_fUSD_20260315
["ID","MTS","AMOUNT","RATE_DAILY","PERIOD"]
[408385635,1773539442518,-10000.0,0.00013636,2]
[408385636,1773539442527,-555.0,0.00013639,2]
[408385637,1773539442538,-1969.63,0.0001364,2]
[408385638,1773539442550,-475.0,0.00013642,2]
[408385639,1773539442559,-392.0,0.00013669,2]
[408385640,1773539442569,-244.0,0.00013697,2]
[408385641,1773539442578,-500.0,0.00013698,2]
[408385642,1773539442587,-536.66,0.00013698,2]
[408385643,1773539442596,-500.0,0.00013698,2]
[408385644,1773539442606,-500.77456102,0.00013698,2]
[408385645,1773539442615,-500.0,0.00013698,2]
[408385646,1773539442624,-500.0,0.00013698,2]
[408385647,1773539442634,-500.0,0.00013698,2]
[408385648,1773539442644,-500.0,0.00013698,2]
[408385649,1773539442653,-500.0,0.00013698,2]
[408385650,1773539442663,-500.0,0.00013698,2]
[408385651,1773539442672,-500.0,0.00013698,2]
[408385652,1773539442682,-500.0,0.00013698,2]
[408385653,1773539442691,-500.0,0.00013698,2]
[408385654,1773539442701,-500.0,0.00013698,2]
[408385655,1773539442710,-500.0,0.00013698,2]
[408385656,1773539442720,-500.0,0.00013698,2]
[408385657,1773539442729,-500.0,0.00013698,2]
[408385658,1773539442738,-500.0,0.00013698,2]
[408385659,1773539442747,-500.0,0.00013698,2]
[408385660,1773539442756,-500.0,0.00013698,2]
[408385661,1773539442765,-500.0,0.00013698,2]
[408385662,1773539442774,-500.0,0.00013698,2]
[408385663,1773539442784,-500.0,0.00013698,2]
[408385664,1773539442793,-500.0,0.00013698,2]
[408385665,1773539442803,-500.0,0.00013698,2]
[408385666,1773539442811,-568.64936411,0.00013698,2]
[408385667,1773539442821,-213.05207057,0.00013698,2]
[408385668,1773539442833,-513.34348811,0.00013698,2]
[408385669,1773539442843,-511.07243209,0.00013698,2]
[408385670,1773539442852,-518.99505939,0.00013698,2]
[408385671,1773539442863,-503.085157,0.00013698,2]
[408385672,1773539442873,-510.91763486,0.00013698,2]
[408385673,1773539442883,-502.23147236,0.00013698,2]
[408385674,1773539442892,-500.0,0.00013698,2]
[408385675,1773539442902,-500.0,0.00013698,2]
[408385676,1773539442911,-500.0,0.00013698,2]
[408385677,1773539442921,-500.0,0.00013698,2]
[408385678,1773539442930,-500.0,0.00013698,2]
[408385679,1773539442939,-500.0,0.00013698,2]
[408385680,1773539442948,-500.0,0.00013698,2]
[408385681,1773539442957,-516.10067893,0.00013698,2]
[408385682,1773539442966,-539.6385769,0.00013698,2]
[408385683,1773539442975,-507.19541747,0.00013698,2]
[408385684,1773539442985,-515.75184569,0.00013698,2]
[408385685,1773539442994,-512.46285872,0.00013698,2]
[408385686,1773539443003,-200.0,0.00013699,2]
[408385687,1773539443013,-331.2186495,0.00013699,2]
[408385688,1773539443022,-160.06205431,0.00013699,2]
[408385689,1773539443031,-1965.0,0.00013708,2]
[408385690,1773539443042,-408.0,0.00013724,2]
[408385691,1773539443061,-394.0,0.00013736,2]
[408385692,1773539443082,-293.0,0.00013751,2]
[408385693,1773539443095,-345.0,0.00013763,2]
[408385694,1773539443105,-200.0,0.00013764,2]
[408385695,1773539443115,-1004.617059,0.00013768,2]
[408385696,1773539443126,-1500.0,0.00013768,2]
[408385698,1773539443138,-1500.0,0.00013768,2]
[408385700,1773539443148,-1500.0,0.00013768,2]
[408385702,1773539443160,-1500.0,0.00013768,2]
[408385704,1773539443169,-500.0,0.00013773,2]
[408385706,1773539443180,-501.05485171,0.00013773,2]
[408385708,1773539443190,-500.0,0.00013773,2]
[408385710,1773539443201,-203.0,0.00013778,2]
[408385712,1773539443212,-1066.0,0.0001379,2]
[408385714,1773539443221,-4000.0,0.00013801,2]
[408385715,1773539443231,-175.0,0.00013805,2]
[408385718,1773539443243,-366.0,0.00013818,2]
[408385719,1773539443253,-2000.0,0.00013837,2]
[408385722,1773539443263,-1384.0,0.00013845,2]
[408385723,1773539443274,-1403.51,0.00013848,2]
[408385725,1773539443284,-994.61,0.00013856,2]
[408385726,1773539443294,-483.0,0.00013873,2]
[408385727,1773539443305,-420.0,0.00013878,2]
[408385728,1773539443316,-1730.0,0.000139,2]
[408385729,1773539443327,-1680.0,0.00013915,2]
[408385730,1773539443337,-254.31,0.00013993,2]
[408385731,1773539443346,-880.96425522,0.00014068,2]
[408385732,1773539443356,-255.0,0.00014075,2]
[408385733,1773539443365,-200.0,0.00014115,2]
[408385734,1773539443375,-1403.51,0.00014122,2]
[408385736,1773539443384,-4000.0,0.00014129,2]
[408385738,1773539443394,-1500.0,0.00014168,2]
[408385740,1773539443404,-874.70888613,0.00014168,2]
[408385741,1773539443413,-1544.01370364,0.00014168,2]
[408385742,1773539443422,-1500.0,0.00014168,2]
[408385743,1773539443431,-1500.0,0.00014168,2]
[408385744,1773539443440,-2000.0,0.00014316,2]
[408385745,1773539443449,-2000.0,0.00014316,2]
[408385746,1773539443457,-365.80616418,0.00014316,2]
[408385747,1773539443466,-2000.0,0.00014316,2]
[408385748,1773539443475,-500.28201641,0.00014321,2]
[408385749,1773539443484,-1000.0,0.00014321,2]
[408385750,1773539443494,-500.0,0.00014373,2]
[408385751,1773539443503,-501.32247837,0.00014373,2]
[408385752,1773539443512,-500.0,0.00014373,2]
[408385753,1773539443521,-1403.51,0.00014396,2]
[408385754,1773539443531,-4000.0,0.00014458,2]
[408385755,1773539443541,-9999.99,0.00014504,2]
[408385756,1773539443550,-299.99,0.00014504,2]
[408385757,1773539443559,-319.38,0.00014504,2]
[408385758,1773539443568,-9999.99,0.00014504,2]
[408385759,1773539443576,-9999.99,0.00014504,2]
[408385760,1773539443585,-499.99,0.00014504,2]
[408385761,1773539443594,-985.01,0.00014504,2]
[408385762,1773539443604,-3429.67,0.00014504,2]
[408385763,1773539443612,-1208.06,0.00014504,2]
[408385764,1773539443623,-150.99,0.00014504,2]
[408385765,1773539443632,-150.99,0.00014504,2]
[408385766,1773539443641,-151.0,0.00014634,2]
[408385767,1773539443650,-151.0,0.00014634,2]
[408385768,1773539443660,-151.0,0.00014634,2]
[408385769,1773539443670,-151.0,0.00014634,2]
[408385770,1773539443679,-151.0,0.00014634,2]
[408385771,1773539443689,-200.0,0.00014663,2]
[408385772,1773539443699,-1403.51,0.0001467,2]
[408385773,1773539443708,-1503.29531739,0.00014716,2]
[408385774,1773539443718,-1001.79136362,0.00014716,2]
[408385775,1773539443731,-2000.0,0.00014716,2]
[408385776,1773539443741,-502.15081476,0.00014718,2]
[408385777,1773539443750,-587.0,0.0001476,2]
[408385778,1773539443760,-1003.06523128,0.00014864,2]
[408385779,1773539443769,-2005.88899418,0.00014864,2]
[408385780,1773539443779,-2500.0,0.00014864,2]
[408385781,1773539443788,-719.11494189,0.00014868,2]
[408385782,1773539443798,-170.1553629,0.000149,2]
[408385783,1773539443807,-501.45819966,0.00014921,2]
[408385784,1773539443816,-544.70776731,0.00014921,2]
[408385785,1773539443826,-1403.51,0.00014944,2]
[408385786,1773539443836,-250.0,0.00015,2]
[408385787,1773539443848,-1027.810105,0.00015068,2]
[408385788,1773539443859,-256.0,0.00015068,2]
[408385789,1773539443868,-242.62,0.00015068,2]
[408385790,1773539443879,-254.31,0.0001507,2]
[408385791,1773539443889,-150.0,0.00015085,2]
[408385792,1773539443898,-203.90717,0.00015102,7]
[408385793,1773539443907,-250.0,0.00015106,2]
[408385794,1773539443919,-200.0,0.00015211,2]
[408385795,1773539443929,-1403.51,0.00015218,2]
[408385796,1773539443937,-182.0,0.00015225,2]
[408385797,1773539443947,-2500.0,0.00015264,2]
[408385798,1773539443956,-433.0,0.00015268,2]
[408385799,1773539443966,-202.309578,0.00015303,7]
[408385800,1773539443976,-2351.0,0.00015307,2]
[408385801,1773539443987,-878.46,0.00015313,2]
[408385802,1773539443997,-1509.1469731,0.00015412,2]
[408385803,1773539444006,-1403.51,0.00015492,2]
[408385804,1773539444015,-2000.0,0.00015567,2]
[408385805,1773539444024,-878.46,0.00015587,2]
[408385806,1773539444033,-217.63,0.00015729,2]
[408385807,1773539444043,-200.0,0.00015759,2]
[408385808,1773539444051,-1403.51,0.00015766,2]
[408385809,1773539444061,-505.33275983,0.00015812,2]
[408385810,1773539444070,-158.77,0.00015819,2]
[408385811,1773539444080,-500.0,0.00015822,2]
[408385812,1773539444089,-880.18,0.00015861,2]
[408385813,1773539444099,-2000.0,0.0001589,2]
[408385814,1773539444109,-1403.57947565,0.0001604,2]
[408385815,1773539444118,-3973.13860667,0.00016047,2]
[408385816,1773539444127,-6336.21339531,0.00016076,2]
[408385817,1773539444136,-9999.99,0.00016116,2]
[408385818,1773539444146,-500.0,0.00016131,2]
[408385819,1773539444155,-254.31,0.00016146,2]
[408385820,1773539444164,-500.0,0.00016192,2]
[408385821,1773539444174,-645.0,0.00016199,2]
[408385822,1773539444183,-150.0,0.00016259,2]
[408385823,1773539444193,-200.0,0.00016307,2]
[408385824,1773539444202,-150.0,0.000164,2]
[408385825,1773539444212,-213.0,0.000164,2]
[408385826,1773539444221,-302.46,0.000164,2]
[408385827,1773539444231,-353.5768258,0.000164,2]
[408385828,1773539444240,-500.0,0.00016438,2]
[408385829,1773539444250,-226.23570669,0.00016438,2]
[408385830,1773539444261,-242.62,0.00016438,2]
[408385831,1773539444270,-736.0,0.00016565,2]
[408385832,1773539444280,-166.79,0.00016712,2]
[408385833,1773539444289,-3292.0,0.00016837,2]
[408385834,1773539444298,-200.0,0.00016855,2]
[408385835,1773539444307,-9999.99,0.00016922,2]
[408385836,1773539444317,-29357.82,0.00016922,2]
[408385837,1773539444327,-1908.29,0.00016922,2]
[408385838,1773539444336,-2300.09,0.00016922,2]
[408385839,1773539444346,-9883.67278859,0.00016984,2]
[408385840,1773539444355,-300.0,0.00017,2]
[408385841,1773539444364,-510.0,0.00017,2]
[408385842,1773539444374,-4913.11985572,0.00017033,2]
[408385843,1773539444383,-190.63,0.00017084,2]
[408385844,1773539444392,-2000.0,0.00017297,2]
[408385845,1773539444402,-251.1313925,0.00017403,2]
[408385846,1773539444411,-155.02778918,0.0001769,2]
[408385847,1773539444421,-158.77,0.00017797,2]
[408385848,1773539444430,-1061.0,0.00017979,2]
[408385849,1773539444439,-6364.0,0.0001809,2]
[408385850,1773539444448,-500.0,0.00018301,2]
[408385851,1773539444458,-487.57,0.00018405,2]
[408385852,1773539444467,-42652.06,0.00018508,2]
[408385853,1773539444477,-1320.0,0.00018521,2]
[408385854,1773539444487,-500.0,0.00018599,2]
[408385855,1773539444496,-660.20724009,0.000186,2]
[408385856,1773539444505,-500.0,0.000186,2]
[408385857,1773539444515,-500.0,0.000186,2]
[408385858,1773539444525,-585.44070062,0.000186,2]
[408385859,1773539444535,-500.0,0.000186,2]
[408385860,1773539444545,-987.83702618,0.000186,2]
[408385861,1773539444554,-500.0,0.000186,2]
[408385862,1773539444564,-500.0,0.000186,2]
[408385863,1773539444574,-500.0,0.000186,2]
[408385864,1773539444584,-658.13489497,0.000186,2]
[408385865,1773539444594,-594.59013911,0.000186,2]
[408385866,1773539444603,-296.75,0.00018679,2]
[408385867,1773539444613,-528.60681773,0.00018745,2]
[408385868,1773539444623,-244.688604,0.00018878,7]
[408385869,1773539444632,-203.11821975,0.00019004,2]
[408385870,1773539444642,-5966.27447809,0.00019026,8]
[408385871,1773539444651,-2000.0,0.00019026,2]
[408385872,1773539444660,-504.62,0.00019113,2]
[408385873,1773539444670,-242.771493,0.00019129,7]
[408385874,1773539444679,-3973.13860667,0.00019153,2]
[408385875,1773539444688,-6336.21339531,0.00019179,2]
[408385876,1773539444697,-2000.0,0.000192,2]
[408385877,1773539444707,-3323.77,0.00019245,2]
[408385878,1773539444716,-334.5916154,0.00019247,2]
[408385879,1773539444725,-183.84,0.00019305,3]
[408385880,1773539444735,-500.0,0.00019562,2]
[408385881,1773539444745,-200.0,0.00019603,2]
[408385882,1773539444756,-12433.67,0.00019717,2]
[408385883,1773539444772,-158.77,0.00019774,2]
[408385884,1773539444788,-2685.62431129,0.00019852,10]
[408385885,1773539444798,-250.0,0.00020195,2]
[408385886,1773539444807,-500.0,0.00020195,2]
[408385887,1773539444816,-500.0,0.00020195,2]
[408385888,1773539444826,-250.0,0.00020195,2]
[408385889,1773539444839,-625.66579447,0.00020195,2]
[408385890,1773539444848,-250.0,0.00020195,2]
[408385891,1773539444858,-250.0,0.00020195,2]
[408385892,1773539444868,-250.0,0.00020195,2]
[408385893,1773539444878,-250.0,0.00020195,2]
[408385894,1773539444995,-250.0,0.00020195,2]
[408385895,1773539445027,-250.0,0.00020195,2]
[408385896,1773539445037,-500.0,0.00020195,2]
[408385897,1773539445046,-250.0,0.00020195,2]
[408385898,1773539445055,-500.0,0.00020195,2]
[408385899,1773539445064,-250.0,0.00020195,2]
[408385900,1773539445074,-516.75374354,0.00020195,2]
[408385901,1773539445084,-1500.0,0.00020195,2]
[408385902,1773539445094,-262.25738298,0.00020195,2]
[408385903,1773539445103,-1500.0,0.00020195,2]
[408385904,1773539445112,-1500.0,0.00020195,2]
[408385905,1773539445122,-1500.0,0.00020195,2]
[408385906,1773539445131,-500.0,0.00020195,2]
[408385907,1773539445140,-1500.0,0.00020195,2]
[408385908,1773539445151,-500.0,0.00020195,2]
[408385909,1773539445160,-250.0,0.00020195,2]
[408385910,1773539445169,-1500.0,0.00020195,2]
[408385911,1773539445179,-500.0,0.00020195,2]
[408385912,1773539445189,-250.0,0.00020195,2]
[408385913,1773539445198,-1500.0,0.00020195,2]
[408385914,1773539445208,-500.0,0.00020195,2]
[408385915,1773539445218,-250.0,0.00020195,2]
[408385916,1773539445227,-1500.0,0.00020195,2]
[408385917,1773539445238,-500.0,0.00020195,2]
[408385918,1773539445247,-250.0,0.00020195,2]
[408385919,1773539445257,-1500.0,0.00020195,2]
[408385920,1773539445267,-500.0,0.00020195,2]
[408385921,1773539445276,-250.0,0.00020195,2]
[408385922,1773539445286,-1500.0,0.00020195,2]
[408385923,1773539445295,-500.0,0.00020195,2]
[408385924,1773539445307,-250.0,0.00020195,2]
[408385925,1773539445317,-1626.45124371,0.00020195,2]
[408385926,1773539445327,-500.0,0.00020195,2]
[408385927,1773539445335,-250.0,0.00020195,2]
[408385928,1773539445345,-500.0,0.00020195,2]
[408385929,1773539445355,-250.0,0.00020195,2]
[408385930,1773539445364,-500.0,0.00020195,2]
[408385931,1773539445373,-250.0,0.00020195,2]
[408385932,1773539445383,-500.0,0.00020195,2]
[408385933,1773539445392,-250.0,0.00020195,2]
[408385934,1773539445402,-259.14946724,0.00020195,2]
[408385935,1773539445411,-151.0,0.00020195,2]
[408385936,1773539445421,-156.587,0.00020195,2]
[408385937,1773539445430,-193.82989053,0.00020195,2]
[408385938,1773539445439,-500.0,0.00020195,2]
[408385939,1773539445451,-500.0,0.00020195,2]
[408385940,1773539445460,-500.0,0.00020195,2]
[408385941,1773539445470,-500.0,0.00020195,2]
[408385942,1773539445479,-500.0,0.00020195,2]
[408385943,1773539445489,-500.0,0.00020195,2]
[408385944,1773539445499,-500.0,0.00020195,2]
[408385945,1773539445509,-500.0,0.00020195,2]
[408385946,1773539445519,-500.0,0.00020195,2]
[408385947,1773539445529,-500.0,0.00020195,2]
[408385948,1773539445540,-500.0,0.00020195,2]
[408385949,1773539445551,-6784.77,0.00020196,2]
[408385950,1773539445561,-14571.67,0.00020201,2]
[408385951,1773539445571,-500.0,0.0002025,2]
[408385952,1773539445581,-500.0,0.00020305,2]
[408385953,1773539445591,-500.0,0.0002036,2]
[408385954,1773539445602,-190.63,0.00020403,2]
[408385955,1773539445612,-500.0,0.00020415,2]
[408385956,1773539445621,-500.0,0.0002047,2]
[408385957,1773539445631,-500.0,0.00020525,2]
[408385958,1773539445640,-500.0,0.0002058,2]
[408385959,1773539445651,-500.0,0.00020635,2]
[408385960,1773539445660,-500.0,0.0002069,2]
[408385961,1773539445669,-500.0,0.00020745,2]
[408385962,1773539445678,-2000.0,0.00020756,2]
[408385963,1773539445687,-166.67,0.00020801,2]
[408385964,1773539445696,-12407.33,0.00020999,2]
[408385965,1773539445706,-4913.11985572,0.00021125,2]
[408385966,1773539445715,-5838.24569422,0.00021239,2]
[408385967,1773539445725,-1264.339,0.00021278,2]
[408385968,1773539445734,-923.0,0.00021278,2]
[408385969,1773539445744,-500.0,0.00021425,2]
[408385970,1773539445753,-163.0,0.00021473,3]
[408385971,1773539445762,-158.77,0.00021752,2]
[408385972,1773539445773,-2500.0,0.00021917,2]
[408385973,1773539445787,-2500.0,0.00021917,2]
[408385974,1773539445797,-2500.0,0.00021917,2]
[408385975,1773539445806,-2500.0,0.00021917,2]
[408385976,1773539445816,-2500.0,0.00021917,2]
[408385977,1773539445827,-2500.0,0.00021917,2]
[408385978,1773539445838,-1445.1719844,0.00021917,2]
[408385979,1773539445849,-5000.0,0.00021918,2]
[408385980,1773539445859,-153.58,0.00021918,2]
[408385981,1773539445868,-3973.13860667,0.0002226,2]
[408385982,1773539445879,-6336.21339531,0.00022282,2]
[408385983,1773539445890,-155.35,0.0002238,2]
[408385984,1773539445900,-168.22,0.000224,60]
[408385985,1773539445910,-166.67,0.00022518,2]
[408385986,1773539445920,-510.0,0.00022727,7]
[408385987,1773539445930,-2000.0,0.000229,2]
[408385988,1773539445940,-3609.3,0.00023047,2]
[408385989,1773539445949,-871.0,0.0002362,3]
[408385990,1773539445959,-288.71246171,0.00023723,5]
[408385991,1773539445969,-158.77,0.00023729,2]
[408385992,1773539445979,-500.0,0.00023753,2]
[408385993,1773539445988,-168.0,0.00024184,2]
[408385994,1773539445997,-166.67,0.00024235,2]
[408385995,1773539446007,-1032.0,0.00024276,5]
[408385996,1773539446017,-1058.0,0.00024276,5]
[408385998,1773539446026,-923.0,0.00024278,2]
[408386000,1773539446037,-190.63,0.00024317,2]
[408386002,1773539446046,-153.58,0.00024486,2]
[408386004,1773539446055,-528.60681773,0.00024509,2]
[408386006,1773539446065,-428.0,0.00024527,2]
[408386008,1773539446075,-166.86,0.000246,5]
[408386011,1773539446085,-697.14,0.00024658,2]
[408386013,1773539446095,-150.0,0.00024658,2]
[408386014,1773539446104,-151.0,0.00024729,7]
[408386016,1773539446114,-500.0,0.00024731,2]
[408386018,1773539446124,-500.0,0.00024731,2]
[408386021,1773539446133,-6451.82042994,0.0002486,30]
[408386022,1773539446142,-151.0,0.00024897,7]
[408386024,1773539446152,-523.87098244,0.00024899,2]
[408386025,1773539446161,-224.55034928,0.000249,2]
[408386026,1773539446170,-240.66790923,0.000249,2]
[408386027,1773539446181,-311740.593969,0.000249,3]
[408386028,1773539446190,-190.62725217,0.00024911,2]
[408386029,1773539446207,-155.27138696,0.0002499,2]
[408386030,1773539446216,-500.0,0.00025,30]
[408386031,1773539446225,-500.0,0.00025,30]
[408386032,1773539446235,-500.0,0.00025,30]
[408386033,1773539446244,-500.0,0.00025,30]
[408386034,1773539446253,-500.0,0.00025,30]
[408386035,1773539446261,-500.0,0.00025,30]
[408386036,1773539446270,-500.0,0.00025,30]
[408386037,1773539446279,-500.0,0.00025,30]
[408386038,1773539446288,-500.0,0.00025,30]
[408386039,1773539446296,-500.0,0.00025,30]
[408386040,1773539446305,-500.0,0.00025,30]
[408386041,1773539446315,-500.0,0.00025,30]
[408386042,1773539446324,-500.0,0.00025,30]
[408386043,1773539446334,-500.0,0.00025,30]
[408386044,1773539446342,-500.0,0.00025,30]
[408386045,1773539446351,-500.0,0.00025,30]
[408386046,1773539446360,-500.0,0.00025,30]
[408386047,1773539446369,-500.0,0.00025,30]
[408386048,1773539446378,-500.0,0.00025,30]
[408386049,1773539446387,-500.0,0.00025,30]
[408386050,1773539446396,-500.0,0.00025,30]
[408386051,1773539446405,-500.0,0.00025,30]
[408386052,1773539446414,-511.49245398,0.00025,30]
[408386053,1773539446423,-500.0,0.00025,30]
[408386054,1773539446432,-500.0,0.00025,30]
[408386055,1773539446440,-500.0,0.00025,30]
[408386056,1773539446450,-500.0,0.00025,30]
[408386057,1773539446459,-500.0,0.00025,30]
[408386058,1773539446468,-500.0,0.00025,30]
[408386060,1773539446477,-500.0,0.00025,30]
[408386062,1773539446487,-500.0,0.00025,30]
[408386064,1773539446495,-500.0,0.00025,30]
[408386066,1773539446504,-500.0,0.00025,30]
[408386068,1773539446513,-500.0,0.00025,30]
[408386070,1773539446522,-500.0,0.00025,30]
[408386072,1773539446532,-500.0,0.00025,30]
[408386074,1773539446541,-500.0,0.00025,30]
[408386076,1773539446550,-500.0,0.00025,30]
[408386078,1773539446560,-500.0,0.00025,30]
[408386080,1773539446568,-500.0,0.00025,30]
[408386082,1773539446577,-500.0,0.00025,30]
[408386084,1773539446586,-500.0,0.00025,30]
[408386085,1773539446595,-500.0,0.00025,30]
[408386087,1773539446604,-500.0,0.00025,30]
[408386089,1773539446614,-150.0,0.00025,2]
[408386091,1773539446624,-500.0,0.00025,30]
[408386093,1773539446633,-500.0,0.00025,30]
[408386095,1773539446643,-500.0,0.00025,30]
[408386097,1773539446652,-500.0,0.00025,30]
[408386099,1773539446662,-500.0,0.00025,30]
[408386100,1773539446671,-500.0,0.00025,30]
[408386101,1773539446681,-500.0,0.00025,30]
[408386102,1773539446690,-500.0,0.00025,30]
[408386103,1773539446699,-500.0,0.00025,30]
[408386104,1773539446709,-500.0,0.00025,30]
[408386105,1773539446719,-500.0,0.00025,30]
[408386106,1773539446728,-500.0,0.00025,30]
[408386107,1773539446738,-1119.02038488,0.00025,2]
[408386108,1773539446747,-208.46180981,0.00025,2]
[408386109,1773539446756,-1793.03849057,0.00025,2]
[408386110,1773539446767,-540.0,0.00025,2]
[408386111,1773539446777,-613.62266769,0.00025,2]
[408386112,1773539446787,-500.0,0.00025,30]
[408386113,1773539446796,-500.0,0.00025,30]
[408386114,1773539446805,-500.0,0.00025,30]
[408386115,1773539446816,-500.0,0.00025,30]
[408386116,1773539446825,-168.06720369,0.00025,2]
[408386117,1773539446839,-50000.0,0.00025,10]
[408386118,1773539446848,-500.0,0.00025,30]
[408386119,1773539446858,-500.0,0.00025,30]
[408386120,1773539446867,-500.0,0.00025,30]
[408386121,1773539446878,-500.0,0.00025,30]
[408386122,1773539446889,-751.37105469,0.00025,30]
[408386123,1773539446899,-828.95398796,0.00025,30]
[408386124,1773539446910,-500.0,0.00025,30]
[408386125,1773539446920,-500.0,0.00025,30]
[408386126,1773539446930,-500.0,0.00025,30]
[408386127,1773539446941,-500.0,0.00025,30]
[408386128,1773539446953,-500.0,0.00025,30]
[408386129,1773539446963,-500.0,0.00025,30]
[408386130,1773539446972,-500.0,0.00025,30]
[408386131,1773539446981,-500.0,0.00025,30]
[408386132,1773539446991,-500.0,0.00025,30]
[408386133,1773539447000,-500.0,0.00025,30]
[408386134,1773539447009,-558.16758526,0.00025014,2]
[408386135,1773539447018,-203.90717,0.0002517,30]
[408386136,1773539447027,-4913.11985572,0.00025218,2]
[408386137,1773539447036,-3973.13860667,0.00025367,2]
[408386138,1773539447045,-6336.21339531,0.00025385,2]
[408386139,1773539447054,-202.309578,0.00025506,30]
[408386140,1773539447063,-4404.03,0.00025546,2]
[408386141,1773539447072,-150.0,0.0002589,2]
[408386142,1773539447082,-603.70215718,0.0002599,2]
[408386143,1773539447092,-217.49597155,0.00026,2]
[408386144,1773539447100,-1394.0,0.00026,2]
[408386145,1773539447113,-491.0,0.00026005,10]
[408386146,1773539447122,-18375.0,0.00026005,10]
[408386147,1773539447131,-500.0,0.00026137,2]
[408386148,1773539447141,-471.0,0.00026201,2]
[408386149,1773539447156,-634.12321395,0.000263,2]
[408386150,1773539447165,-1092.80615958,0.000264,2]
[408386151,1773539447174,-2000.0,0.000266,2]
[408386152,1773539447183,-3061.03535233,0.00026704,36]
[408386153,1773539447193,-3323.77,0.00026943,2]
[408386154,1773539447203,-2000.0,0.00027,2]
[408386155,1773539447212,-250.0,0.00027,2]
[408386156,1773539447221,-1039.62675581,0.00027,2]
[408386157,1773539447229,-530.0,0.00027,2]
[408386158,1773539447239,-2511.650479,0.0002701,2]
[408386159,1773539447248,-153.58,0.00027055,2]
[408386160,1773539447256,-150.0,0.00027185,2]
[408386161,1773539447265,-923.0,0.00027278,2]
[408386162,1773539447274,-1000.0,0.00027397,20]
[408386163,1773539447284,-697.14,0.00027397,2]
[408386164,1773539447293,-300.0,0.00027397,2]
[408386165,1773539447303,-522.39,0.00027397,2]
[408386166,1773539447312,-17731.45,0.00027397,10]
[408386167,1773539447321,-14776.2,0.00027397,10]
[408386168,1773539447330,-12313.5,0.00027397,10]
[408386169,1773539447340,-202.34427051,0.000275,2]
[408386170,1773539447349,-552.67296002,0.000275,2]
[408386171,1773539447358,-1285.0,0.0002795,5]
[408386172,1773539447367,-160.0,0.00028,2]
[408386173,1773539447412,-643.0,0.00028,2]
[408386174,1773539447423,-697.0,0.00028,2]
[408386175,1773539447431,-2247.62338023,0.00028216,42]
[408386176,1773539447440,-510.0,0.00028455,12]
[408386177,1773539447450,-3973.13860667,0.00028473,2]
[408386178,1773539447459,-6336.21339531,0.00028488,2]
[408386179,1773539447468,-150.0,0.00028544,2]
[408386180,1773539447477,-497.25498154,0.00028767,2]
[408386181,1773539447486,-350.0,0.00028795,5]
[408386182,1773539447495,-505.19260555,0.00029,2]
[408386183,1773539447504,-4913.11985572,0.0002931,2]
[408386184,1773539447513,-152.0,0.00029375,3]
[408386185,1773539447522,-166.66,0.0002959,2]